fUST/lending_fUST_20250226
["ID","MTS","AMOUNT","RATE_DAILY","PERIOD"]
[354530698,1740558688355,-500.0,0.00039441,2]
[354530699,1740558688366,-500.0,0.00039441,2]
[354530700,1740558688375,-500.0,0.00039441,2]
[354530701,1740558688387,-689.21,0.00039441,2]
[354530702,1740558688396,-785.33,0.00039441,2]
[354530703,1740558688406,-500.0,0.00039441,2]
[354530704,1740558688416,-500.0,0.00039441,2]
[354530705,1740558688426,-500.0,0.00039441,2]
[354530706,1740558688436,-500.0,0.00039441,2]
[354530707,1740558688445,-500.0,0.00039441,2]
[354530708,1740558688455,-500.0,0.00039441,2]
[354530709,1740558688464,-500.0,0.00039441,2]
[354530710,1740558688473,-500.0,0.00039441,2]
[354530711,1740558688483,-500.0,0.00039441,2]
[354530712,1740558688492,-500.0,0.00039441,2]
[354530713,1740558688502,-500.0,0.00039441,2]
[354530714,1740558688511,-500.0,0.00039441,2]
[354530715,1740558688521,-478.87840677,0.00039441,2]
[354530716,1740558688530,-500.0,0.00039441,2]
[354530717,1740558688540,-500.0,0.00039441,2]
[354530718,1740558688550,-734.51,0.00039441,2]
[354530719,1740558688559,-500.0,0.00039441,2]
[354530720,1740558688569,-500.0,0.00039441,2]
[354530721,1740558688578,-500.0,0.00039441,2]
[354530722,1740558688588,-500.0,0.00039441,2]
[354530723,1740558688597,-524.41,0.00039441,2]
[354530724,1740558688607,-926.84,0.00039441,2]
[354530725,1740558688617,-500.0,0.00039441,2]
[354530726,1740558688627,-513.08897261,0.00039441,2]
[354530727,1740558688637,-7891.32,0.00039441,2]
[354530728,1740558688647,-500.0,0.00039441,2]
[354530729,1740558688656,-4684.26,0.00039441,2]
[354530730,1740558688666,-871.57,0.00039441,2]
[354530731,1740558688675,-500.0,0.00039441,2]
[354530732,1740558688685,-500.0,0.00039441,2]
[354530733,1740558688695,-500.0,0.00039441,2]
[354530734,1740558688704,-500.0,0.00039441,2]
[354530735,1740558688714,-978.51,0.00039441,2]
[354530736,1740558688724,-500.0,0.00039441,2]
[354530737,1740558688733,-569.86540444,0.00039441,2]
[354530738,1740558688743,-636.88,0.00039441,2]
[354530739,1740558688753,-500.0,0.00039441,2]
[354530740,1740558688762,-680.1,0.00039441,2]
[354530741,1740558688772,-500.0,0.00039441,2]
[354530742,1740558688781,-500.0,0.00039441,2]
[354530743,1740558688790,-500.0,0.00039441,2]
[354530744,1740558688799,-510.14769304,0.00039441,2]
[354530745,1740558688808,-775.53,0.00039441,2]
[354530746,1740558688817,-500.0,0.00039441,2]
[354530747,1740558688828,-500.0,0.00039441,2]
[354530748,1740558688837,-500.0,0.00039441,2]
[354530749,1740558688846,-500.0,0.00039441,2]
[354530750,1740558688855,-604.16,0.00039441,2]
[354530751,1740558688865,-500.0,0.00039441,2]
[354530752,1740558688874,-500.0,0.00039441,2]
[354530753,1740558688885,-542.14,0.00039441,2]
[354530754,1740558688894,-500.0,0.00039441,2]
[354530755,1740558688903,-500.0,0.00039441,2]
[354530756,1740558688913,-500.0,0.00039441,2]
[354530757,1740558688922,-208.82933197,0.00039441,2]
[354530758,1740558688932,-500.0,0.00039441,2]
[354530759,1740558688941,-500.0,0.00039441,2]
[354530760,1740558688950,-646.59637489,0.00039441,2]
[354530761,1740558688959,-500.0,0.0003945,2]
[354530762,1740558688969,-500.0,0.0003945,2]
[354530763,1740558688978,-500.0,0.0003945,2]
[354530764,1740558688988,-500.0,0.0003945,2]
[354530765,1740558688997,-554.44,0.0003945,2]
[354530766,1740558689007,-500.0,0.0003945,2]
[354530767,1740558689016,-500.0,0.0003945,2]
[354530768,1740558689025,-505.97697306,0.0003945,2]
[354530769,1740558689034,-500.0,0.0003945,2]
[354530770,1740558689043,-500.0,0.0003945,2]
[354530771,1740558689052,-500.0,0.0003945,2]
[354530772,1740558689061,-500.0,0.0003945,2]
[354530773,1740558689071,-717.11,0.0003945,2]
[354530774,1740558689080,-500.0,0.0003945,2]
[354530775,1740558689090,-500.0,0.0003945,2]
[354530776,1740558689099,-500.0,0.0003945,2]
[354530777,1740558689108,-500.0,0.0003945,2]
[354530778,1740558689118,-500.0,0.0003945,2]
[354530779,1740558689127,-500.0,0.0003945,2]
[354530780,1740558689138,-205.95320781,0.0003945,2]
[354530781,1740558689147,-500.0,0.0003945,2]
[354530782,1740558689156,-500.0,0.0003945,2]
[354530783,1740558689165,-500.0,0.0003945,2]
[354530784,1740558689175,-500.0,0.0003945,2]
[354530785,1740558689184,-300.0,0.0003945,120]
[354530786,1740558689193,-500.0,0.0003945,2]
[354530787,1740558689202,-500.0,0.0003945,2]
[354530788,1740558689212,-639.26,0.0003945,2]
[354530789,1740558689221,-500.0,0.0003945,2]
[354530790,1740558689231,-500.0,0.0003945,2]
[354530791,1740558689240,-500.0,0.0003945,2]
[354530792,1740558689249,-500.0,0.0003945,2]
[354530793,1740558689259,-507.2489813,0.0003945,2]
[354530794,1740558689267,-500.0,0.0003945,2]
[354530795,1740558689277,-500.0,0.0003945,2]
[354530796,1740558689289,-500.0,0.0003945,2]
[354530797,1740558689299,-506.0554809,0.0003945,2]
[354530798,1740558689308,-500.0,0.0003945,2]
[354530799,1740558689319,-500.0,0.0003945,2]
[354530800,1740558689328,-500.0,0.0003945,2]
[354530801,1740558689337,-500.0,0.0003945,2]
[354530802,1740558689348,-586.05,0.0003945,2]
[354530803,1740558689358,-500.0,0.0003945,2]
[354530804,1740558689368,-500.0,0.0003945,2]
[354530805,1740558689378,-500.0,0.0003945,2]
[354530806,1740558689388,-500.0,0.0003945,2]
[354530807,1740558689397,-164.27514471,0.0003945,2]
[354530808,1740558689407,-500.0,0.0003945,2]
[354530809,1740558689416,-500.0,0.0003945,2]
[354530810,1740558689426,-500.0,0.0003945,2]
[354530811,1740558689435,-500.0,0.0003945,2]
[354530812,1740558689446,-500.0,0.0003945,2]
[354530813,1740558689456,-500.0,0.0003945,2]
[354530814,1740558689466,-500.0,0.0003945,2]
[354530815,1740558689475,-186.322582,0.0003945,14]
[354530816,1740558689486,-506.56423361,0.0003945,2]
[354530817,1740558689498,-561.33,0.0003945,2]
[354530818,1740558689608,-186.322582,0.0003945,14]
[354530819,1740558689618,-500.0,0.0003945,2]
[354530820,1740558689628,-500.0,0.0003945,2]
[354530821,1740558689637,-500.0,0.0003945,2]
[354530822,1740558689648,-500.0,0.0003945,2]
[354530823,1740558689657,-565.23,0.0003945,2]
[354530824,1740558689668,-500.0,0.0003945,2]
[354530825,1740558689677,-500.0,0.0003945,2]
[354530826,1740558689686,-500.0,0.0003945,2]
[354530827,1740558689696,-528.37,0.0003945,2]
[354530828,1740558689706,-613.55,0.0003945,2]
[354530829,1740558689715,-648.85,0.0003945,2]
[354530830,1740558689725,-500.0,0.0003945,2]
[354530831,1740558689734,-500.0,0.0003945,2]
[354530832,1740558689744,-500.0,0.0003945,2]
[354530833,1740558689753,-500.0,0.0003945,2]
[354530834,1740558689762,-500.0,0.0003945,2]
[354530835,1740558689772,-500.0,0.0003945,2]
[354530836,1740558689781,-500.0,0.0003945,2]
[354530837,1740558689790,-500.0,0.0003945,2]
[354530838,1740558689799,-462.0925426,0.0003945,2]
[354530839,1740558689810,-500.0,0.0003945,2]
[354530840,1740558689819,-500.0,0.0003945,2]
[354530841,1740558689829,-500.0,0.0003945,2]
[354530842,1740558689839,-569.12,0.0003945,2]
[354530843,1740558689848,-500.0,0.0003945,2]
[354530844,1740558689857,-500.0,0.0003945,2]
[354530845,1740558689867,-819.68,0.0003945,2]
[354530846,1740558689876,-500.0,0.0003945,2]
[354530847,1740558689886,-500.0,0.0003945,2]
[354530848,1740558689895,-690.47,0.0003945,2]
[354530849,1740558689905,-500.0,0.0003945,2]
[354530850,1740558689915,-564.17,0.0003945,2]
[354530851,1740558689924,-681.33,0.0003945,2]
[354530852,1740558689933,-500.0,0.00039451,2]
[354530853,1740558689944,-500.0,0.00039451,2]
[354530854,1740558689953,-500.0,0.00039451,2]
[354530855,1740558689962,-1934.61,0.00039451,2]
[354530856,1740558689972,-500.0,0.00039451,2]
[354530857,1740558689982,-791.41,0.00039451,2]
[354530858,1740558689991,-504.76,0.00039451,2]
[354530859,1740558690001,-500.0,0.00039451,2]
[354530860,1740558690010,-1419.4,0.00039451,2]
[354530861,1740558690020,-1936.09,0.00039451,2]
[354530862,1740558690029,-1160.21,0.00039451,2]
[354530863,1740558690039,-728.98,0.00039451,2]
[354530864,1740558690048,-500.0,0.00039451,2]
[354530865,1740558690057,-500.0,0.00039451,2]
[354530866,1740558690066,-2716.92,0.00039451,2]
[354530867,1740558690076,-1164.04,0.00039451,2]
[354530868,1740558690085,-962.5,0.00039451,2]
[354530869,1740558690094,-679.73,0.00039451,2]
[354530870,1740558690105,-5271.87,0.00039451,2]
[354530871,1740558690115,-2041.52,0.00039451,2]
[354530872,1740558690125,-1375.0,0.00039452,2]
[354530873,1740558690134,-500.0,0.00039452,2]
[354530874,1740558690145,-500.0,0.00039452,2]
[354530875,1740558690156,-500.0,0.00039452,2]
[354530876,1740558690165,-502.09010371,0.00039452,2]
[354530877,1740558690174,-500.0,0.00039452,2]
[354530878,1740558690184,-500.0,0.00039452,2]
[354530879,1740558690193,-500.0,0.00039452,2]
[354530880,1740558690203,-500.0,0.00039452,2]
[354530881,1740558690212,-500.0,0.00039452,2]
[354530882,1740558690222,-500.0,0.00039452,2]
[354530883,1740558690231,-501.30971949,0.00039452,2]
[354530884,1740558690241,-500.0,0.00039452,2]
[354530885,1740558690250,-500.0,0.00039452,2]
[354530886,1740558690260,-500.0,0.00039452,2]
[354530887,1740558690269,-500.0,0.00039452,2]
[354530888,1740558690279,-500.0,0.00039452,2]
[354530889,1740558690291,-500.0,0.00039452,2]
[354530890,1740558690300,-195.95449882,0.00039452,2]
[354530891,1740558690309,-501.04189899,0.00039452,2]
[354530892,1740558690318,-500.0,0.00039452,2]
[354530893,1740558690328,-500.0,0.00039452,2]
[354530894,1740558690340,-500.0,0.00039452,2]
[354530895,1740558690350,-500.0,0.00039452,2]
[354530896,1740558690359,-500.0,0.00039452,2]
[354530897,1740558690372,-274.15352749,0.00039452,2]
[354530898,1740558690382,-274.23776578,0.00039452,2]
[354530899,1740558690393,-500.0,0.00039452,2]
[354530900,1740558690403,-500.0,0.00039452,2]
[354530901,1740558690412,-500.0,0.00039452,2]
[354530902,1740558690422,-534.42073277,0.00039452,2]
[354530903,1740558690431,-787.39,0.00039452,2]
[354530904,1740558690441,-500.0,0.00039452,2]
[354530905,1740558690451,-500.0,0.00039452,2]
[354530906,1740558690460,-500.0,0.00039452,2]
[354530907,1740558690470,-500.0,0.00039452,2]
[354530908,1740558690480,-500.0,0.00039452,2]
[354530909,1740558690489,-500.0,0.00039452,2]
[354530910,1740558690498,-500.0,0.00039452,2]
[354530911,1740558690508,-683.71,0.00039452,2]
[354530912,1740558690517,-500.0,0.00039452,2]
[354530913,1740558690526,-500.0,0.00039452,2]
[354530914,1740558690536,-500.0,0.00039452,2]
[354530915,1740558690546,-500.0,0.00039452,2]
[354530916,1740558690555,-500.0,0.00039452,2]
[354530917,1740558690565,-500.0,0.00039452,2]
[354530918,1740558690574,-569.11,0.00039452,2]
[354530919,1740558690584,-255.42828757,0.00039452,2]
[354530920,1740558690594,-584.77527752,0.00039452,2]
[354530921,1740558690603,-500.0,0.00039452,2]
[354530922,1740558690612,-500.0,0.00039452,2]
[354530923,1740558690621,-500.0,0.00039452,2]
[354530924,1740558690631,-510.61799891,0.00039452,2]
[354530925,1740558690643,-500.0,0.00039452,2]
[354530926,1740558690653,-506.1319701,0.00039452,2]
[354530927,1740558690662,-500.0,0.00039452,2]
[354530928,1740558690672,-368.78793359,0.00039452,2]
[354530929,1740558690681,-500.0,0.00039452,2]
[354530930,1740558690691,-500.0,0.00039452,2]
[354530931,1740558690701,-500.0,0.00039452,2]
[354530932,1740558690710,-500.0,0.00039452,2]
[354530933,1740558690719,-500.0,0.00039452,2]
[354530934,1740558690728,-500.0,0.00039452,2]
[354530935,1740558690738,-411.67385719,0.00039452,2]
[354530936,1740558690747,-500.0,0.00039452,2]
[354530937,1740558690757,-500.0,0.00039452,2]
[354530938,1740558690767,-500.0,0.00039452,2]
[354530939,1740558690776,-512.7,0.00039452,2]
[354530940,1740558690785,-500.0,0.00039452,2]
[354530941,1740558690795,-500.0,0.00039452,2]
[354530942,1740558690804,-500.0,0.00039452,2]
[354530943,1740558690813,-500.0,0.00039452,2]
[354530944,1740558690824,-580.7274982,0.00039452,2]
[354530945,1740558690833,-500.0,0.00039452,2]
[354530946,1740558690842,-500.0,0.00039452,2]
[354530947,1740558690852,-622.51035981,0.00039452,2]
[354530948,1740558690862,-500.0,0.00039452,2]
[354530949,1740558690871,-500.0,0.00039452,2]
[354530950,1740558690882,-500.0,0.00039452,2]
[354530951,1740558690893,-500.0,0.00039452,2]
[354530952,1740558690903,-500.0,0.00039452,2]
[354530953,1740558690912,-500.0,0.00039452,2]
[354530954,1740558690921,-562.39,0.00039452,2]
[354530955,1740558690930,-578.94,0.00039452,2]
[354530956,1740558690940,-500.0,0.00039452,2]
[354530957,1740558690949,-500.0,0.00039452,2]
[354530958,1740558690958,-500.0,0.00039452,2]
[354530959,1740558690968,-500.0,0.00039452,2]
[354530960,1740558690977,-500.0,0.00039452,2]
[354530961,1740558690987,-859.52,0.00039452,2]
[354530962,1740558690996,-500.0,0.00039452,2]
[354530963,1740558691005,-500.0,0.00039452,2]
[354530964,1740558691015,-500.0,0.00039452,2]
[354530965,1740558691024,-703.42,0.00039452,2]
[354530966,1740558691033,-500.0,0.00039452,2]
[354530967,1740558691042,-500.0,0.00039452,2]
[354530968,1740558691052,-527.18198659,0.00039452,2]
[354530969,1740558691061,-500.0,0.00039452,2]
[354530970,1740558691070,-500.0,0.00039452,2]
[354530971,1740558691079,-500.0,0.00039452,2]
[354530972,1740558691089,-500.0,0.00039452,2]
[354530973,1740558691099,-500.0,0.00039452,2]
[354530974,1740558691108,-500.0,0.00039452,70]
[354530975,1740558691118,-500.0,0.00039452,2]
[354530976,1740558691131,-500.0,0.00039452,2]
[354530977,1740558691142,-500.0,0.00039452,2]
[354530978,1740558691151,-500.0,0.00039452,2]
[354530979,1740558691161,-500.0,0.00039452,2]
[354530980,1740558691170,-667.32,0.00039452,2]
[354530981,1740558691179,-616.8,0.00039452,2]
[354530982,1740558691189,-500.0,0.00039452,2]
[354530983,1740558691198,-500.0,0.00039452,2]
[354530984,1740558691208,-500.0,0.00039452,2]
[354530985,1740558691217,-500.0,0.00039452,2]
[354530986,1740558691226,-661.5,0.00039452,2]
[354530987,1740558691342,-500.0,0.00039452,2]
[354530988,1740558691358,-500.0,0.00039452,2]
[354530989,1740558691368,-500.0,0.00039452,2]
[354530990,1740558691378,-500.0,0.00039452,2]
[354530991,1740558691387,-500.0,0.00039452,2]
[354530992,1740558691398,-510.79,0.00039452,2]
[354530993,1740558691407,-301.73661624,0.00039452,2]
[354530994,1740558691417,-500.0,0.00039452,2]
[354530995,1740558691426,-500.0,0.00039452,2]
[354530996,1740558691435,-802.93,0.00039452,2]
[354530997,1740558691445,-500.0,0.00039452,2]
[354530998,1740558691454,-371.41775404,0.00039452,2]
[354530999,1740558691463,-500.0,0.00039452,2]
[354531000,1740558691473,-500.0,0.00039452,2]
[354531001,1740558691482,-500.0,0.00039452,2]
[354531002,1740558691491,-505.4932349,0.00039452,2]
[354531003,1740558691500,-500.0,0.00039452,2]
[354531004,1740558691510,-500.0,0.00039452,2]
[354531005,1740558691519,-505.9955988,0.00039452,2]
[354531006,1740558691528,-500.0,0.00039452,2]
[354531007,1740558691537,-569.52,0.00039452,2]
[354531008,1740558691546,-500.0,0.00039452,2]
[354531009,1740558691556,-500.0,0.00039452,2]
[354531010,1740558691565,-500.0,0.00039452,2]
[354531011,1740558691575,-503.04,0.00039452,2]
[354531012,1740558691584,-500.0,0.00039452,2]
[354531013,1740558691594,-500.0,0.00039452,2]
[354531014,1740558691604,-723.89,0.00039452,2]
[354531015,1740558691615,-500.38,0.00039452,2]
[354531016,1740558691624,-500.0,0.00039452,2]
[354531017,1740558691634,-500.0,0.00039452,2]
[354531018,1740558691645,-501.5,0.00039452,2]
[354531019,1740558691655,-500.0,0.00039452,2]
[354531020,1740558691664,-512.87,0.00039452,2]
[354531021,1740558691675,-500.0,0.00039452,2]
[354531022,1740558691687,-500.0,0.00039452,2]
[354531023,1740558691708,-500.0,0.00039452,2]
[354531024,1740558691718,-186.322582,0.00039452,14]
[354531025,1740558691728,-186.322574,0.00039452,14]
[354531026,1740558691737,-614.65,0.00039452,2]
[354531027,1740558691746,-500.0,0.00039452,2]
[354531028,1740558691755,-500.0,0.00039452,2]
[354531029,1740558691764,-500.0,0.00039452,2]
[354531030,1740558691774,-170.637319,0.00039452,14]
[354531031,1740558691786,-170.637325,0.00039452,14]
[354531032,1740558691795,-624.83,0.00039452,2]
[354531033,1740558691804,-151.0,0.00039452,14]
[354531034,1740558691813,-589.02,0.00039452,2]
[354531035,1740558691822,-889.66,0.00039452,2]
[354531036,1740558691831,-500.0,0.00039452,2]
[354531037,1740558691840,-1136.23,0.00039452,2]
[354531038,1740558691850,-1804.81,0.00039452,2]
[354531039,1740558691859,-1190.11,0.00039452,2]
[354531040,1740558691868,-2633.89,0.00039452,2]
[354531041,1740558691877,-535.35,0.00039452,2]
[354531042,1740558691886,-770.85,0.00039452,2]
[354531043,1740558691897,-1556.33,0.00039452,2]
[354531044,1740558691907,-700.46,0.00039452,2]
[354531045,1740558691916,-911.0,0.00039452,2]
[354531046,1740558691927,-1160.43,0.00039452,2]
[354531047,1740558691937,-583.33,0.00039452,2]
[354531048,1740558691948,-150.32,0.00039452,2]
[354531049,1740558691957,-583.33,0.00039452,2]
[354531050,1740558691967,-626.63,0.00039452,2]
[354531051,1740558691977,-518.21,0.00039452,2]
[354531052,1740558691986,-500.0,0.000395,2]
[354531053,1740558691995,-837.37,0.000395,2]
[354531054,1740558692004,-500.0,0.000395,2]
[354531055,1740558692014,-500.0,0.000395,2]
[354531056,1740558692023,-1223.33,0.000395,2]
[354531057,1740558692033,-500.0,0.000395,2]
[354531058,1740558692042,-500.0,0.000395,2]
[354531059,1740558692052,-746.59,0.000395,2]
[354531060,1740558692062,-996.86,0.000395,2]
[354531061,1740558692072,-649.16,0.000395,2]
[354531062,1740558692081,-500.0,0.000395,2]
[354531063,1740558692090,-809.19,0.000395,2]
[354531064,1740558692100,-500.0,0.000395,2]
[354531065,1740558692120,-500.0,0.000395,2]
[354531066,1740558692137,-500.0,0.000395,2]
[354531067,1740558692156,-807.31,0.000395,2]
[354531068,1740558692176,-551.31,0.000395,2]
[354531069,1740558692194,-500.0,0.000395,2]
[354531070,1740558692212,-500.0,0.000395,2]
[354531071,1740558692227,-1093.48,0.000395,2]
[354531072,1740558692245,-923.19,0.000395,2]
[354531073,1740558692267,-937.3,0.000395,2]
[354531074,1740558692287,-500.0,0.000395,2]
[354531075,1740558692304,-500.0,0.000395,2]
[354531076,1740558692323,-731.22,0.000395,2]
[354531077,1740558692338,-836.16,0.000395,2]
[354531078,1740558692353,-1435.65,0.000395,2]
[354531079,1740558692370,-1482.81,0.000395,2]
[354531080,1740558692385,-745.96,0.000395,2]
[354531081,1740558692399,-1248.13,0.000395,2]
[354531082,1740558692414,-631.6,0.000395,2]
[354531083,1740558692428,-500.0,0.000395,2]
[354531084,1740558692444,-500.0,0.000395,2]
[354531085,1740558692460,-691.31,0.000395,2]
[354531086,1740558692475,-1944.22,0.000395,2]
[354531087,1740558692491,-500.0,0.000395,2]
[354531088,1740558692506,-934.6,0.000395,2]
[354531089,1740558692521,-729.0,0.000395,2]
[354531090,1740558692536,-936.38,0.000395,2]
[354531091,1740558692552,-683.43,0.000395,2]
[354531092,1740558692567,-844.03,0.000395,2]
[354531093,1740558692583,-571.6,0.000395,2]
[354531094,1740558692598,-500.0,0.000395,2]
[354531095,1740558692613,-876.55,0.000395,2]
[354531096,1740558692628,-519.21,0.000395,2]
[354531097,1740558692643,-500.0,0.000395,2]
[354531098,1740558692657,-884.18,0.000395,2]
[354531099,1740558692671,-763.01,0.000395,2]
[354531100,1740558692686,-500.0,0.000395,2]
[354531101,1740558692700,-635.38,0.000395,2]
[354531102,1740558692714,-500.0,0.000395,2]
[354531103,1740558692729,-500.0,0.000395,2]
[354531104,1740558692743,-500.0,0.000395,2]
[354531105,1740558692758,-5538.76,0.000395,2]
[354531106,1740558692772,-784.71,0.000395,2]
[354531107,1740558692785,-751.07,0.000395,2]
[354531108,1740558692801,-511.78,0.000395,2]
[354531109,1740558692815,-500.0,0.000395,2]
[354531110,1740558692829,-642.18,0.000395,2]
[354531111,1740558692844,-500.0,0.000395,2]
[354531112,1740558692858,-674.65,0.000395,2]
[354531113,1740558692871,-726.46,0.000395,2]
[354531114,1740558692886,-745.5,0.000395,2]
[354531115,1740558692902,-500.0,0.000395,2]
[354531116,1740558692916,-503.2,0.000395,2]
[354531117,1740558692931,-500.0,0.000395,2]
[354531118,1740558692945,-171.58992146,0.000395,2]
[354531119,1740558692959,-500.99370526,0.00039715,2]
[354531120,1740558692973,-500.0,0.00039715,2]
[354531121,1740558692987,-500.0,0.00039715,2]
[354531122,1740558693001,-500.0,0.00039715,2]
[354531123,1740558693016,-500.0,0.00039715,2]
[354531124,1740558693030,-500.0,0.00039715,2]
[354531125,1740558693046,-500.0,0.00039715,2]
[354531126,1740558693061,-785.72,0.00039715,2]
[354531127,1740558693077,-500.0,0.00039715,2]
[354531128,1740558693091,-500.57710818,0.00039715,2]
[354531129,1740558693106,-500.0,0.00039715,2]
[354531130,1740558693120,-500.0,0.00039715,2]
[354531131,1740558693135,-500.0,0.00039715,2]
[354531132,1740558693152,-500.0,0.00039715,2]
[354531133,1740558693167,-500.0,0.00039715,2]
[354531134,1740558693182,-500.0,0.00039715,2]
[354531135,1740558693197,-500.0,0.00039715,2]
[354531136,1740558693212,-294.21680451,0.00039715,2]
[354531137,1740558693227,-500.0,0.00039715,2]
[354531138,1740558693241,-500.0,0.00039715,2]
[354531139,1740558693256,-500.0,0.00039715,2]
[354531140,1740558693271,-500.0,0.00039715,2]
[354531141,1740558693443,-930.16,0.00039715,2]
[354531142,1740558693454,-500.0,0.00039715,2]
[354531143,1740558693464,-639.3,0.00039715,2]
[354531144,1740558693473,-500.0,0.00039715,2]
[354531145,1740558693483,-641.45,0.00039715,2]
[354531146,1740558693492,-500.0,0.00039715,2]
[354531147,1740558693502,-500.0,0.00039715,2]
[354531148,1740558693511,-500.0,0.00039715,2]
[354531149,1740558693531,-500.0,0.00039715,2]
[354531150,1740558693540,-297.93519586,0.00039715,2]
[354531151,1740558693560,-500.0,0.00039715,2]
[354531152,1740558693570,-626.59,0.00039715,2]
[354531153,1740558693580,-500.0,0.00039715,2]
[354531154,1740558693590,-500.0,0.00039715,2]
[354531155,1740558693600,-500.0,0.00039715,2]
[354531156,1740558693610,-500.0,0.00039715,2]
[354531157,1740558693620,-500.0,0.00039715,2]
[354531158,1740558693631,-500.0,0.00039715,2]
[354531159,1740558693642,-500.0,0.00039715,2]
[354531160,1740558693653,-250.0,0.00039715,2]
[354531161,1740558693663,-500.0,0.00039715,2]
[354531162,1740558693673,-500.0,0.00039715,2]
[354531163,1740558693683,-500.0,0.00039715,2]
[354531164,1740558693693,-500.0,0.00039715,2]
[354531165,1740558693702,-500.0,0.00039715,2]
[354531166,1740558693712,-500.0,0.00039715,2]
[354531167,1740558693722,-656.28,0.00039715,2]
[354531168,1740558693733,-500.0,0.00039715,2]
[354531169,1740558693744,-504.00042291,0.00039715,2]
[354531170,1740558693754,-500.0,0.00039715,2]
[354531171,1740558693764,-500.0,0.00039715,2]
[354531172,1740558693774,-500.0,0.00039715,2]
[354531173,1740558693784,-500.0,0.00039715,2]
[354531174,1740558693794,-689.21,0.00039715,2]
[354531175,1740558693804,-785.33,0.00039715,2]
[354531176,1740558693813,-500.0,0.00039715,2]
[354531177,1740558693823,-500.0,0.00039715,2]
[354531178,1740558693832,-500.0,0.00039715,2]
[354531179,1740558693844,-500.0,0.00039715,2]
[354531180,1740558693853,-500.0,0.00039715,2]
[354531181,1740558693863,-500.0,0.00039715,2]
[354531182,1740558693872,-500.0,0.00039715,2]
[354531183,1740558693882,-500.0,0.00039715,2]
[354531184,1740558693891,-500.0,0.00039715,2]
[354531185,1740558693901,-500.0,0.00039715,2]
[354531186,1740558693910,-500.0,0.00039715,2]
[354531187,1740558693920,-500.0,0.00039715,2]
[354531188,1740558693929,-500.0,0.00039715,2]
[354531189,1740558693939,-734.51,0.00039715,2]
[354531190,1740558693949,-506.55148984,0.00039715,2]
[354531191,1740558693959,-500.0,0.00039715,2]
[354531192,1740558693968,-506.94927712,0.00039715,2]
[354531193,1740558693977,-524.41,0.00039715,2]
[354531194,1740558693987,-926.84,0.00039715,2]
[354531195,1740558693996,-500.0,0.00039715,2]
[354531196,1740558694006,-7891.32,0.00039715,2]
[354531197,1740558694015,-500.0,0.00039715,2]